bitfinex-derivatives/quotes_BTCF0:USTF0_20230106
["timestamp","ask_amount","ask_price","bid_price","bid_amount"]
[1672990419915,0.9408567,16809.0,16808.0,0.01068635]
[1672990420134,1.5422567,16809.0,16808.0,0.01068635]
[1672990457163,1.5422567,16809.0,16808.0,0.01048881]
[1672990462314,1.2415567,16809.0,16808.0,0.01048881]
[1672990462530,1.5422567,16809.0,16808.0,0.01048881]
[1672990464204,0.9408567,16809.0,16808.0,0.01048881]
[1672990464408,1.5422567,16809.0,16808.0,0.01048881]
[1672990465044,0.9408567,16809.0,16808.0,0.01048881]
[1672990465245,1.5422567,16809.0,16808.0,0.01048881]
[1672990465891,0.9408567,16809.0,16808.0,0.01048881]
[1672990466088,1.5422567,16809.0,16808.0,0.01048881]
[1672990471440,0.9408567,16809.0,16808.0,0.01048881]
[1672990471953,1.5422567,16809.0,16808.0,0.01048881]
[1672990472162,1.2415567,16809.0,16808.0,0.01048881]
[1672990472490,1.5422567,16809.0,16808.0,0.01048881]
[1672990486045,1.54210037,16809.0,16808.0,0.01048881]
[1672990492675,0.94070037,16809.0,16808.0,0.01048881]
[1672990492884,1.54210037,16809.0,16808.0,0.01048881]
[1672990497719,0.94070037,16809.0,16808.0,0.01048881]
[1672990497934,1.24140037,16809.0,16808.0,0.01048881]
[1672990499929,0.94070037,16809.0,16808.0,0.01048881]
[1672990500145,1.24140037,16809.0,16808.0,0.01048881]
[1672990503492,1.24140037,16809.0,16805.0,0.6]
[1672990503706,1.32640037,16809.0,16808.0,0.001]
[1672990515162,1.62710037,16809.0,16808.0,0.001]
[1672990516005,1.02570037,16809.0,16808.0,0.001]
[1672990516212,1.62710037,16809.0,16808.0,0.001]
[1672990519892,1.02570037,16809.0,16808.0,0.001]
[1672990520104,1.62710037,16809.0,16808.0,0.001]
[1672990521782,0.3,16808.0,16805.0,0.6]
[1672990522098,1.18902326,16807.0,16805.0,0.6]
[1672990523991,1.28102326,16807.0,16805.0,0.6]
[1672990528500,1.28102326,16807.0,16805.0,0.6892095]
[1672990528715,1.28102326,16807.0,16805.0,0.6]
[1672990528926,1.28102326,16807.0,16805.0,0.6892095]
[1672990531442,1.28102326,16807.0,16805.0,0.6]
[1672990531968,1.28102326,16807.0,16805.0,0.3]
[1672990535329,1.28102326,16807.0,16805.0,0.3892095]
[1672990536700,1.28102326,16807.0,16805.0,0.38902639]
[1672990539956,0.98032326,16807.0,16805.0,0.38902639]
[1672990540167,1.28102326,16807.0,16805.0,0.38902639]
[1672990541013,0.98032326,16807.0,16805.0,0.38902639]
[1672990541222,0.98032326,16807.0,16805.0,0.29981689]
[1672990541421,1.28102326,16807.0,16805.0,0.38902639]
[1672990541631,1.28102326,16807.0,16805.0,0.29981689]
[1672990550354,1.28102326,16807.0,16805.0,0.38902639]
[1672990550575,1.28102326,16807.0,16805.0,0.29981689]
[1672990552889,0.98032326,16807.0,16805.0,0.29981689]
[1672990553101,0.3007,16806.0,16805.0,0.29981689]
[1672990553421,1.19792529,16806.0,16805.0,0.29981689]
[1672990554357,1.21592529,16806.0,16805.0,0.29981689]
[1672990564879,0.91522529,16806.0,16805.0,0.29981689]
[1672990565094,1.21592529,16806.0,16805.0,0.29981689]
[1672990571188,0.91522529,16806.0,16805.0,0.29981689]
[1672990588962,0.91522529,16806.0,16805.0,0.299647]
[1672990597792,0.91522529,16806.0,16805.0,0.3888565]
[1672990602315,0.91522529,16806.0,16805.0,0.6895565]
[1672990606208,0.91522529,16806.0,16805.0,0.3888565]
[1672990607153,0.91522529,16806.0,16805.0,0.299647]
[1672990609991,1.21592529,16806.0,16805.0,0.299647]
[1672990625328,0.91522529,16806.0,16805.0,0.299647]
[1672990625855,1.21592529,16806.0,16805.0,0.299647]
[1672990639201,0.91522529,16806.0,16805.0,0.299647]
[1672990639518,1.21592529,16806.0,16805.0,0.299647]
[1672990643925,1.21592529,16806.0,16805.0,0.29956644]
[1672990654858,0.91522529,16806.0,16805.0,0.29956644]
[1672990655169,1.21592529,16806.0,16805.0,0.29956644]
[1672990657688,0.91522529,16806.0,16805.0,0.29956644]
[1672990658009,1.21592529,16806.0,16805.0,0.29956644]
[1672990658629,0.91522529,16806.0,16805.0,0.29956644]
[1672990658845,1.21592529,16806.0,16805.0,0.29956644]
[1672990659473,0.91522529,16806.0,16805.0,0.29956644]
[1672990659683,1.21592529,16806.0,16805.0,0.29956644]
[1672990661690,0.91522529,16806.0,16805.0,0.29956644]
[1672990662003,1.21592529,16806.0,16805.0,0.29956644]
[1672990664524,0.91522529,16806.0,16805.0,0.29956644]
[1672990664731,1.21592529,16806.0,16805.0,0.29956644]
[1672990666102,1.21581752,16806.0,16805.0,0.29956644]
[1672990668091,0.91511752,16806.0,16805.0,0.29956644]
[1672990668313,1.21581752,16806.0,16805.0,0.29956644]
[1672990669782,0.91511752,16806.0,16805.0,0.29956644]
[1672990670195,1.21581752,16806.0,16805.0,0.29956644]
[1672990670932,0.91511752,16806.0,16805.0,0.29956644]
[1672990671148,1.21581752,16806.0,16805.0,0.29956644]
[1672990674937,0.91511752,16806.0,16805.0,0.29956644]
[1672990675148,1.21581752,16806.0,16805.0,0.29956644]
[1672990686807,0.91511752,16806.0,16805.0,0.29956644]
[1672990687035,1.21581752,16806.0,16805.0,0.29956644]
[1672990687654,0.91511752,16806.0,16805.0,0.29956644]
[1672990687866,1.21581752,16806.0,16805.0,0.29956644]
[1672990694910,0.91511752,16806.0,16805.0,0.29956644]
[1672990695107,1.21581752,16806.0,16805.0,0.29956644]
[1672990698166,0.91511752,16806.0,16805.0,0.29956644]
[1672990698372,1.21581752,16806.0,16805.0,0.29956644]
[1672990702789,0.91511752,16806.0,16805.0,0.29956644]
[1672990702991,1.21581752,16806.0,16805.0,0.29956644]
[1672990704984,0.91511752,16806.0,16805.0,0.29956644]
[1672990705198,1.21581752,16806.0,16805.0,0.29956644]
[1672990706773,0.91511752,16806.0,16805.0,0.29956644]
[1672990706983,1.21581752,16806.0,16805.0,0.29956644]
[1672990713088,0.91511752,16806.0,16805.0,0.29956644]
[1672990713289,1.21581752,16806.0,16805.0,0.29956644]
[1672990717919,0.91511752,16806.0,16805.0,0.29956644]
[1672990718117,1.21581752,16806.0,16805.0,0.29956644]
[1672990719911,1.21581752,16806.0,16805.0,0.2993661]
[1672990725065,0.91511752,16806.0,16805.0,0.2993661]
[1672990725275,1.21581752,16806.0,16805.0,0.2993661]
[1672990725902,0.91511752,16806.0,16805.0,0.2993661]
[1672990726216,1.21581752,16806.0,16805.0,0.2993661]
[1672990739155,0.91511752,16806.0,16805.0,0.2993661]
[1672990739352,1.21581752,16806.0,16805.0,0.2993661]
[1672990739772,0.91511752,16806.0,16805.0,0.2993661]
[1672990739982,1.21581752,16806.0,16805.0,0.2993661]
[1672990747871,0.91511752,16806.0,16805.0,0.2993661]
[1672990752389,1.21581752,16806.0,16805.0,0.2993661]
[1672990761840,0.91511752,16806.0,16805.0,0.2993661]
[1672990762054,1.21581752,16806.0,16805.0,0.2993661]
[1672990764686,0.91511752,16806.0,16805.0,0.2993661]
[1672990765198,1.21581752,16806.0,16805.0,0.2993661]
[1672990766258,1.21581752,16806.0,16805.0,0.29917204]
[1672990772778,0.91511752,16806.0,16805.0,0.29917204]
[1672990773089,1.21581752,16806.0,16805.0,0.29917204]
[1672990773502,0.91511752,16806.0,16805.0,0.29917204]
[1672990773712,1.21581752,16806.0,16805.0,0.29917204]
[1672990784017,0.91511752,16806.0,16805.0,0.29917204]
[1672990784228,1.21581752,16806.0,16805.0,0.29917204]
[1672990789383,1.21581752,16806.0,16804.0,0.3]
[1672990789906,0.3,16805.0,16804.0,0.3]
[1672990790332,1.18202111,16805.0,16804.0,0.3]
[1672990791272,0.88202111,16805.0,16804.0,0.3]
[1672990791794,0.88202111,16805.0,16804.0,0.301]
[1672990792216,0.88202111,16805.0,16804.0,0.3]
[1672990792539,0.89802111,16805.0,16804.0,0.302]
[1672990798116,1.19872111,16805.0,16804.0,0.302]
[1672990812320,1.19872111,16805.0,16804.0,0.30190254]
[1672990814938,0.89802111,16805.0,16804.0,0.30190254]
[1672990815151,1.19872111,16805.0,16804.0,0.30190254]
[1672990817043,0.89802111,16805.0,16804.0,0.30190254]
[1672990817577,1.19872111,16805.0,16804.0,0.30190254]
[1672990822716,0.89802111,16805.0,16804.0,0.30190254]
[1672990822923,1.19872111,16805.0,16804.0,0.30190254]
[1672990823552,0.89802111,16805.0,16804.0,0.30190254]
[1672990823880,1.19872111,16805.0,16804.0,0.30190254]
[1672990824702,0.89802111,16805.0,16804.0,0.30190254]
[1672990825026,1.19872111,16805.0,16804.0,0.30190254]
[1672990831030,0.89802111,16805.0,16804.0,0.30190254]
[1672990831231,1.19872111,16805.0,16804.0,0.30190254]
[1672990832073,1.16957972,16805.0,16804.0,0.30190254]
[1672990834283,0.86887972,16805.0,16804.0,0.30190254]
[1672990834603,1.16957972,16805.0,16804.0,0.30190254]
[1672990837546,0.86887972,16805.0,16804.0,0.30190254]
[1672990838068,1.16957972,16805.0,16804.0,0.30190254]
[1672990840588,0.86887972,16805.0,16804.0,0.30190254]
[1672990843955,1.16957972,16805.0,16804.0,0.30190254]
[1672990844586,0.86887972,16805.0,16804.0,0.30190254]
[1672990845108,1.16957972,16805.0,16804.0,0.30190254]
[1672990845525,0.86887972,16805.0,16804.0,0.30190254]
[1672990845749,1.16957972,16805.0,16804.0,0.30190254]
[1672990846059,0.86887972,16805.0,16804.0,0.30190254]
[1672990846274,1.16957972,16805.0,16804.0,0.30190254]
[1672990846475,0.86887972,16805.0,16804.0,0.30190254]
[1672990846694,1.16957972,16805.0,16804.0,0.30190254]
[1672990849218,0.86887972,16805.0,16804.0,0.30190254]
[1672990849444,1.16957972,16805.0,16804.0,0.30190254]
[1672990857840,0.86887972,16805.0,16804.0,0.30190254]
[1672990858260,1.16957972,16805.0,16804.0,0.30190254]
[1672990860361,0.86887972,16805.0,16804.0,0.30190254]
[1672990860580,1.16957972,16805.0,16804.0,0.30190254]
[1672990862900,0.86887972,16805.0,16804.0,0.30190254]
[1672990863100,1.16957972,16805.0,16804.0,0.30190254]
[1672990863837,0.86887972,16805.0,16804.0,0.30190254]
[1672990864046,1.16957972,16805.0,16804.0,0.30190254]
[1672990864256,0.86887972,16805.0,16804.0,0.30190254]
[1672990864465,1.16957972,16805.0,16804.0,0.30190254]
[1672990867409,0.86887972,16805.0,16804.0,0.30190254]
[1672990867625,1.16957972,16805.0,16804.0,0.30190254]
[1672990868037,0.86887972,16805.0,16804.0,0.30190254]
[1672990868352,1.16957972,16805.0,16804.0,0.30190254]
[1672990869190,0.86887972,16805.0,16804.0,0.30190254]
[1672990869620,1.16957972,16805.0,16804.0,0.30190254]
[1672990870140,0.86887972,16805.0,16804.0,0.30190254]
[1672990870351,1.16957972,16805.0,16804.0,0.30190254]
[1672990872664,0.86887972,16805.0,16804.0,0.30190254]
[1672990873508,1.16957972,16805.0,16804.0,0.30190254]
[1672990873826,0.86887972,16805.0,16804.0,0.30190254]
[1672990874022,1.16957972,16805.0,16804.0,0.30190254]
[1672990874439,0.86887972,16805.0,16804.0,0.30190254]
[1672990874650,1.16957972,16805.0,16804.0,0.30190254]
[1672990874864,0.86887972,16805.0,16804.0,0.30190254]
[1672990875078,1.16957972,16805.0,16804.0,0.30190254]
[1672990876125,0.86887972,16805.0,16804.0,0.30190254]
[1672990876341,1.16957972,16805.0,16804.0,0.30190254]
[1672990885909,0.86887972,16805.0,16804.0,0.30190254]
[1672990886324,1.16957972,16805.0,16804.0,0.30190254]
[1672990886531,1.16957972,16805.0,16804.0,0.30180315]
[1672990888104,0.86887972,16805.0,16804.0,0.30180315]
[1672990888424,1.16957972,16805.0,16804.0,0.30180315]
[1672990889267,0.86887972,16805.0,16804.0,0.30180315]
[1672990889473,1.16957972,16805.0,16804.0,0.30180315]
[1672990893151,0.86887972,16805.0,16804.0,0.30180315]
[1672990893572,1.16957972,16805.0,16804.0,0.30180315]
[1672990895685,0.86887972,16805.0,16804.0,0.30180315]
[1672990895894,1.16957972,16805.0,16804.0,0.30180315]
[1672990902313,0.86887972,16805.0,16804.0,0.30180315]
[1672990902629,1.16957972,16805.0,16804.0,0.30180315]
[1672990906407,0.86887972,16805.0,16804.0,0.30180315]
[1672990906623,1.16957972,16805.0,16804.0,0.30180315]
[1672990919549,0.86887972,16805.0,16804.0,0.30180315]
[1672990919977,1.16957972,16805.0,16804.0,0.30180315]
[1672990920808,0.86887972,16805.0,16804.0,0.30180315]
[1672990921021,1.16957972,16805.0,16804.0,0.30180315]
[1672990921452,0.86887972,16805.0,16804.0,0.30180315]
[1672990921647,1.16957972,16805.0,16804.0,0.30180315]
[1672990928701,0.86887972,16805.0,16804.0,0.30180315]
[1672990929018,1.16957972,16805.0,16804.0,0.30180315]
[1672990931533,0.86887972,16805.0,16804.0,0.30180315]
[1672990931743,1.16957972,16805.0,16804.0,0.30180315]
[1672990931965,0.86887972,16805.0,16804.0,0.30180315]
[1672990932164,1.16957972,16805.0,16804.0,0.30180315]
[1672990932371,0.86887972,16805.0,16804.0,0.30180315]
[1672990932904,1.16957972,16805.0,16804.0,0.30180315]
[1672990935636,1.16937635,16805.0,16804.0,0.30180315]
[1672990935849,0.86867635,16805.0,16804.0,0.30180315]
[1672990936162,1.16937635,16805.0,16804.0,0.30180315]
[1672990937948,0.86867635,16805.0,16804.0,0.30180315]
[1672990938159,1.16937635,16805.0,16804.0,0.30180315]
[1672990938681,0.86867635,16805.0,16804.0,0.30180315]
[1672990939090,1.16937635,16805.0,16804.0,0.30180315]
[1672990939305,0.86867635,16805.0,16804.0,0.30180315]
[1672990939515,1.16937635,16805.0,16804.0,0.30180315]
[1672990942471,0.86867635,16805.0,16804.0,0.30180315]
[1672990942778,1.16937635,16805.0,16804.0,0.30180315]
[1672990950779,0.86867635,16805.0,16804.0,0.30180315]
[1672990951186,1.16937635,16805.0,16804.0,0.30180315]
[1672990951930,0.86867635,16805.0,16804.0,0.30180315]
[1672990952143,1.16937635,16805.0,16804.0,0.30180315]
[1672990953814,0.86867635,16805.0,16804.0,0.30180315]
[1672990954031,1.16937635,16805.0,16804.0,0.30180315]
[1672990954451,0.86867635,16805.0,16804.0,0.30180315]
[1672990954766,1.16937635,16805.0,16804.0,0.30180315]
[1672990955611,1.28737635,16805.0,16804.0,0.29980315]
[1672990963916,0.98667635,16805.0,16804.0,0.29980315]
[1672990964121,1.28737635,16805.0,16804.0,0.29980315]
[1672990965612,0.98667635,16805.0,16804.0,0.29980315]
[1672990965917,1.28737635,16805.0,16804.0,0.29980315]
[1672990975377,0.98667635,16805.0,16804.0,0.29980315]
[1672990975795,1.28737635,16805.0,16804.0,0.29980315]
[1672990984544,0.98667635,16805.0,16804.0,0.29980315]
[1672990985067,1.28737635,16805.0,16804.0,0.29980315]
[1672990986326,0.3,16804.0,16803.0,0.3]
[1672990986742,1.19178069,16804.0,16803.0,0.3]
[1672990987697,1.20978069,16804.0,16803.0,0.3]
[1672990988637,0.90978069,16804.0,16803.0,0.3]
[1672990989260,0.90978069,16804.0,16803.0,0.29984087]
[1672990991790,1.21048069,16804.0,16803.0,0.29984087]
[1672990998316,0.90978069,16804.0,16803.0,0.29984087]
[1672990998516,1.21048069,16804.0,16803.0,0.29984087]
[1672991008818,0.90978069,16804.0,16803.0,0.29984087]
[1672991009139,1.21048069,16804.0,16803.0,0.29984087]
[1672991015139,0.90978069,16804.0,16803.0,0.29984087]
[1672991015345,1.21048069,16804.0,16803.0,0.29984087]
[1672991019657,0.90978069,16804.0,16803.0,0.29984087]
[1672991020068,1.21048069,16804.0,16803.0,0.29984087]
[1672991022496,0.90978069,16804.0,16803.0,0.29984087]
[1672991022815,1.21048069,16804.0,16803.0,0.29984087]
[1672991028279,0.90978069,16804.0,16803.0,0.29984087]
[1672991028486,1.21048069,16804.0,16803.0,0.29984087]
[1672991034573,0.90978069,16804.0,16803.0,0.29984087]
[1672991034790,1.21048069,16804.0,16803.0,0.29984087]
[1672991034999,0.90978069,16804.0,16803.0,0.29984087]
[1672991035209,1.21048069,16804.0,16803.0,0.29984087]
[1672991036573,0.90978069,16804.0,16803.0,0.29984087]
[1672991037001,1.21048069,16804.0,16803.0,0.29984087]
[1672991041848,1.21048069,16804.0,16803.0,0.29974641]
[1672991044998,0.90978069,16804.0,16803.0,0.29974641]
[1672991045522,1.21048069,16804.0,16803.0,0.29974641]
[1672991046150,0.90978069,16804.0,16803.0,0.29974641]
[1672991046361,1.21048069,16804.0,16803.0,0.29974641]
[1672991046571,0.90978069,16804.0,16803.0,0.29974641]
[1672991046776,1.21048069,16804.0,16803.0,0.29974641]
[1672991049520,0.90978069,16804.0,16803.0,0.29974641]
[1672991049719,1.21048069,16804.0,16803.0,0.29974641]
[1672991049934,0.90978069,16804.0,16803.0,0.29974641]
[1672991050144,1.21048069,16804.0,16803.0,0.29974641]
[1672991050460,0.90978069,16804.0,16803.0,0.29974641]
[1672991050670,1.21048069,16804.0,16803.0,0.29974641]
[1672991051731,0.90978069,16804.0,16803.0,0.29974641]
[1672991052040,1.21048069,16804.0,16803.0,0.29974641]
[1672991065386,0.90978069,16804.0,16803.0,0.29974641]
[1672991065596,1.21048069,16804.0,16803.0,0.29974641]
[1672991067490,0.90978069,16804.0,16803.0,0.29974641]
[1672991067807,1.21048069,16804.0,16803.0,0.29974641]
[1672991072637,0.90978069,16804.0,16803.0,0.29974641]
[1672991072851,1.21048069,16804.0,16803.0,0.29974641]
[1672991079475,0.90978069,16804.0,16803.0,0.29974641]
[1672991080322,1.21048069,16804.0,16803.0,0.29974641]
[1672991080527,0.90978069,16804.0,16803.0,0.29974641]
[1672991080746,1.21048069,16804.0,16803.0,0.29974641]
[1672991081897,0.90978069,16804.0,16803.0,0.29974641]
[1672991082425,1.21048069,16804.0,16803.0,0.29974641]
[1672991083157,0.90978069,16804.0,16803.0,0.29974641]
[1672991083377,1.21048069,16804.0,16803.0,0.29974641]
[1672991085890,0.90978069,16804.0,16803.0,0.29974641]
[1672991086210,1.21048069,16804.0,16803.0,0.29974641]
[1672991092201,1.21048069,16804.0,16803.0,0.29951463]
[1672991109975,0.90978069,16804.0,16803.0,0.29951463]
[1672991110185,1.21048069,16804.0,16803.0,0.29951463]
[1672991116277,0.90978069,16804.0,16803.0,0.29951463]
[1672991116488,1.21048069,16804.0,16803.0,0.29951463]
[1672991118376,0.90978069,16804.0,16803.0,0.29951463]
[1672991138654,0.90978069,16804.0,16803.0,0.29932324]
[1672991153472,1.21048069,16804.0,16803.0,0.29932324]
[1672991155782,0.90978069,16804.0,16803.0,0.29932324]
[1672991155994,1.21048069,16804.0,16803.0,0.29932324]
[1672991163979,0.90978069,16804.0,16803.0,0.29932324]
[1672991164193,1.21048069,16804.0,16803.0,0.29932324]
[1672991164825,0.90978069,16804.0,16803.0,0.29932324]
[1672991165040,1.21048069,16804.0,16803.0,0.29932324]
[1672991166092,0.90978069,16804.0,16803.0,0.29932324]
[1672991166306,1.21048069,16804.0,16803.0,0.29932324]
[1672991170089,0.90978069,16804.0,16803.0,0.29932324]
[1672991170302,1.21048069,16804.0,16803.0,0.29932324]
[1672991171034,0.90978069,16804.0,16803.0,0.29932324]
[1672991171250,1.21048069,16804.0,16803.0,0.29932324]
[1672991176391,1.21048069,16804.0,16800.0,0.8703095]
[1672991176606,0.3007,16801.0,16799.0,0.81822376]
[1672991176806,0.3007,16801.0,16800.0,0.3]
[1672991177231,0.31237279,16801.0,16800.0,0.3]
[1672991177554,0.31237279,16801.0,16800.0,0.302]
[1672991178082,0.32637279,16801.0,16800.0,0.302]
[1672991179555,0.32737279,16801.0,16800.0,0.302]
[1672991179981,0.31237279,16801.0,16800.0,0.3]
[1672991180295,0.32837279,16801.0,16800.0,0.302]
[1672991183864,0.32837279,16801.0,16800.0,0.002]
[1672991187025,0.32837279,16801.0,16800.0,0.00186381]
[1672991191539,0.62837279,16801.0,16800.0,0.00186381]
[1672991199631,0.32767279,16801.0,16800.0,0.00186381]
[1672991200047,0.92907279,16801.0,16800.0,0.00186381]
[1672991214778,0.32767279,16801.0,16800.0,0.00186381]
[1672991215201,0.92907279,16801.0,16800.0,0.00186381]
[1672991223710,0.62837279,16801.0,16800.0,0.00186381]
[1672991223921,0.92907279,16801.0,16800.0,0.00186381]
[1672991225822,0.32767279,16801.0,16800.0,0.00186381]
[1672991226246,0.92907279,16801.0,16800.0,0.00186381]
[1672991226459,0.92907279,16801.0,16800.0,0.09107331]
[1672991229293,0.92907279,16801.0,16800.0,0.00186381]
[1672991239270,0.62837279,16801.0,16800.0,0.00186381]
[1672991239483,0.92907279,16801.0,16800.0,0.00163386]
[1672991241484,0.32767279,16801.0,16800.0,0.00163386]
[1672991241801,0.92907279,16801.0,16800.0,0.00163386]
[1672991284698,0.62837279,16801.0,16800.0,0.00163386]
[1672991284914,0.92907279,16801.0,16800.0,0.00163386]
[1672991285866,0.32767279,16801.0,16800.0,0.00163386]
[1672991286068,0.92907279,16801.0,16800.0,0.00163386]
[1672991289226,0.92907279,16801.0,16800.0,0.00152703]
[1672991289542,0.92900332,16801.0,16800.0,0.00152703]
[1672991292916,0.62830332,16801.0,16800.0,0.00152703]
[1672991293227,0.92900332,16801.0,16800.0,0.00152703]
[1672991303835,0.62830332,16801.0,16800.0,0.00152703]
[1672991304050,0.92900332,16801.0,16800.0,0.00152703]
[1672991306361,0.32760332,16801.0,16800.0,0.00152703]
[1672991306778,0.92900332,16801.0,16800.0,0.00152703]
[1672991315191,0.32760332,16801.0,16800.0,0.00152703]
[1672991315509,0.92900332,16801.0,16800.0,0.00152703]
[1672991316035,0.32760332,16801.0,16800.0,0.00152703]
[1672991316248,0.92900332,16801.0,16800.0,0.00152703]
[1672991323707,0.32760332,16801.0,16800.0,0.00152703]
[1672991324019,0.92900332,16801.0,16800.0,0.00152703]
[1672991324952,0.32760332,16801.0,16800.0,0.00152703]
[1672991325166,0.92900332,16801.0,16800.0,0.00152703]
[1672991326433,0.32760332,16801.0,16800.0,0.00152703]
[1672991326637,0.92900332,16801.0,16800.0,0.00152703]
[1672991328324,0.32760332,16801.0,16800.0,0.00152703]
[1672991328537,0.92900332,16801.0,16800.0,0.00152703]
[1672991329376,0.32760332,16801.0,16800.0,0.00152703]
[1672991329571,0.92900332,16801.0,16800.0,0.00152703]
[1672991335049,0.92900332,16801.0,16800.0,0.00141178]
[1672991335673,0.62830332,16801.0,16800.0,0.00141178]
[1672991335888,0.92900332,16801.0,16800.0,0.00141178]
[1672991337979,0.32760332,16801.0,16800.0,0.00141178]
[1672991338308,0.92900332,16801.0,16800.0,0.00141178]
[1672991353332,0.32760332,16801.0,16800.0,0.00141178]
[1672991353536,0.92900332,16801.0,16800.0,0.00141178]
[1672991355120,0.32760332,16801.0,16800.0,0.00141178]
[1672991355433,0.92900332,16801.0,16800.0,0.00141178]
[1672991365091,0.32760332,16801.0,16800.0,0.00141178]
[1672991365302,0.92900332,16801.0,16800.0,0.00141178]
[1672991367198,0.32760332,16801.0,16800.0,0.00141178]
[1672991367406,0.92900332,16801.0,16800.0,0.00141178]
[1672991368043,0.92886254,16801.0,16800.0,0.00141178]
[1672991371086,0.62816254,16801.0,16800.0,0.00141178]
[1672991371289,0.92886254,16801.0,16800.0,0.00141178]
[1672991374656,0.32746254,16801.0,16800.0,0.00141178]
[1672991374866,0.92886254,16801.0,16800.0,0.00141178]
[1672991375072,0.32746254,16801.0,16800.0,0.00141178]
[1672991375288,0.92886254,16801.0,16800.0,0.00141178]
[1672991375502,0.32746254,16801.0,16800.0,0.00141178]
[1672991375713,0.92886254,16801.0,16800.0,0.00141178]
[1672991386435,0.32746254,16801.0,16800.0,0.00141178]
[1672991386950,0.92886254,16801.0,16800.0,0.00141178]
[1672991388421,0.32746254,16801.0,16800.0,0.00141178]
[1672991388644,0.92886254,16801.0,16800.0,0.00141178]
[1672991389488,0.32746254,16801.0,16800.0,0.00141178]
[1672991390026,0.92886254,16801.0,16800.0,0.00141178]
[1672991405366,0.32746254,16801.0,16800.0,0.00141178]
[1672991405574,0.92886254,16801.0,16800.0,0.00141178]
[1672991409670,0.32746254,16801.0,16800.0,0.00141178]
[1672991409885,0.92886254,16801.0,16800.0,0.00141178]
[1672991418504,0.92886254,16801.0,16800.0,0.00131681]
[1672991420923,0.32746254,16801.0,16800.0,0.00131681]
[1672991421250,0.92886254,16801.0,16800.0,0.00131681]
[1672991432936,0.62816254,16801.0,16800.0,0.00131681]
[1672991439031,0.32746254,16801.0,16800.0,0.00131681]
[1672991439237,0.62816254,16801.0,16800.0,0.00131681]
[1672991441144,0.32746254,16801.0,16800.0,0.00131681]
[1672991441341,0.62816254,16801.0,16800.0,0.00131681]
[1672991452159,0.32746254,16801.0,16800.0,0.00131681]
[1672991452362,0.62816254,16801.0,16800.0,0.00131681]
[1672991456573,0.32746254,16801.0,16800.0,0.00131681]
[1672991456784,0.62816254,16801.0,16800.0,0.00131681]
[1672991461621,0.32746254,16801.0,16800.0,0.00131681]
[1672991461831,0.62816254,16801.0,16800.0,0.00131681]
[1672991468139,0.62816254,16801.0,16800.0,0.09042271]
[1672991468350,0.62816254,16801.0,16800.0,0.00131681]
[1672991468885,0.32746254,16801.0,16800.0,0.00131681]
[1672991469097,0.62816254,16801.0,16800.0,0.0903621]
[1672991470144,0.32746254,16801.0,16800.0,0.0012562]
[1672991470567,0.62816254,16801.0,16800.0,0.0012562]
[1672991472986,0.92886254,16801.0,16800.0,0.0012562]
[1672991477081,0.32746254,16801.0,16800.0,0.0012562]
[1672991477284,0.92886254,16801.0,16800.0,0.0012562]
[1672991480561,0.62816254,16801.0,16800.0,0.0012562]
[1672991480772,0.92886254,16801.0,16800.0,0.0012562]
[1672991485391,0.32746254,16801.0,16800.0,0.0012562]
[1672991485607,0.92886254,16801.0,16800.0,0.0012562]
[1672991485824,0.62816254,16801.0,16800.0,0.0012562]
[1672991486125,0.92886254,16801.0,16800.0,0.0012562]
[1672991486550,0.32746254,16801.0,16800.0,0.0012562]
[1672991486755,0.92886254,16801.0,16800.0,0.0012562]
[1672991491705,0.32746254,16801.0,16800.0,0.0012562]
[1672991491906,0.92886254,16801.0,16800.0,0.0012562]
[1672991492849,0.32746254,16801.0,16800.0,0.0012562]
[1672991493067,0.92886254,16801.0,16800.0,0.0012562]
[1672991497588,0.92886254,16801.0,16800.0,0.0903621]
[1672991499903,0.92886254,16801.0,16800.0,0.0012562]
[1672991500951,0.92886254,16801.0,16800.0,0.0903621]
[1672991501894,0.62816254,16801.0,16800.0,0.0903621]
[1672991505276,0.62816254,16801.0,16800.0,0.0012562]
[1672991506215,0.62816254,16801.0,16800.0,0.0903621]
[1672991509049,0.32816254,16801.0,16800.0,0.0903621]
[1672991509898,0.62816254,16801.0,16800.0,0.0903621]
[1672991510838,0.62816254,16801.0,16800.0,0.0012562]
[1672991515562,0.32746254,16801.0,16800.0,0.0903621]
[1672991515979,0.62816254,16801.0,16800.0,0.0903621]
[1672991516620,0.32746254,16801.0,16800.0,0.0903621]
[1672991517032,0.62816254,16801.0,16800.0,0.0903621]
[1672991517245,0.32746254,16801.0,16800.0,0.0903621]
[1672991517465,0.62816254,16801.0,16800.0,0.0903621]
[1672991517991,0.62816254,16801.0,16800.0,0.09015814]
[1672991519772,0.32746254,16801.0,16800.0,0.09015814]
[1672991519986,0.62816254,16801.0,16800.0,0.09015814]
[1672991521667,0.32816254,16801.0,16800.0,0.09015814]
[1672991525885,0.32816254,16801.0,16800.0,0.39015814]
[1672991526093,0.32816254,16801.0,16800.0,0.30105224]
[1672991528504,0.02746254,16801.0,16800.0,0.30105224]
[1672991528721,0.32816254,16801.0,16800.0,0.30105224]
[1672991539758,0.02746254,16801.0,16800.0,0.30105224]
[1672991540072,0.32816254,16801.0,16800.0,0.30105224]
[1672991543013,0.02746254,16801.0,16800.0,0.30105224]
[1672991543221,0.32816254,16801.0,16800.0,0.30105224]
[1672991544694,0.02746254,16801.0,16800.0,0.30105224]
[1672991545007,0.32816254,16801.0,16800.0,0.30105224]
[1672991546155,0.32792607,16801.0,16800.0,0.30105224]
[1672991547428,0.32792607,16801.0,16800.0,0.39015814]
[1672991549112,0.32792607,16801.0,16800.0,0.30105224]
[1672991551002,0.32792607,16801.0,16800.0,0.39015814]
[1672991551533,0.32792607,16801.0,16800.0,0.30105224]
[1672991552056,0.32792607,16801.0,16800.0,0.39015814]
[1672991557210,0.02722607,16801.0,16800.0,0.39015814]
[1672991568252,0.02722607,16801.0,16800.0,0.30105224]
[1672991568450,0.02722607,16801.0,16800.0,0.39015814]
[1672991568983,0.32792607,16801.0,16800.0,0.39015814]
[1672991574977,0.02722607,16801.0,16800.0,0.39015814]
[1672991594325,0.02722607,16801.0,16800.0,0.30105224]
[1672991595583,0.02722607,16801.0,16800.0,0.39015814]
[1672991596528,0.02722607,16801.0,16800.0,0.39007375]
[1672991597157,0.02722607,16801.0,16800.0,0.30096785]
[1672991597578,0.32792607,16801.0,16800.0,0.39007375]
[1672991600000,0.02722607,16801.0,16800.0,0.39007375]
[1672991600424,0.32792607,16801.0,16800.0,0.39007375]
[1672991600740,0.02722607,16801.0,16800.0,0.39007375]
[1672991600936,0.32792607,16801.0,16800.0,0.39007375]
[1672991604416,0.02722607,16801.0,16800.0,0.39007375]
[1672991604623,0.32792607,16801.0,16800.0,0.39007375]
[1672991610736,0.02722607,16801.0,16800.0,0.39007375]
[1672991612089,0.02722607,16801.0,16800.0,0.30096785]
[1672991624923,0.32792607,16801.0,16800.0,0.30096785]
[1672991626822,0.02722607,16801.0,16800.0,0.30096785]
[1672991627452,0.32792607,16801.0,16800.0,0.30096785]
[1672991633865,0.02722607,16801.0,16800.0,0.30096785]